fUSD/lending_fUSD_20260305
["ID","MTS","AMOUNT","RATE_DAILY","PERIOD"]
[407727137,1772701844051,-500.0,0.00016499,2]
[407727138,1772701844060,-500.0,0.00016499,2]
[407727139,1772701844070,-500.0,0.00016499,2]
[407727140,1772701844079,-500.0,0.00016499,2]
[407727141,1772701844088,-500.0,0.00016499,2]
[407727142,1772701844098,-500.0,0.00016499,2]
[407727143,1772701844107,-500.0,0.00016499,2]
[407727144,1772701844117,-500.0,0.00016499,2]
[407727145,1772701844126,-500.0,0.00016499,2]
[407727146,1772701844135,-500.0,0.00016499,2]
[407727147,1772701844147,-500.0,0.00016499,2]
[407727148,1772701844156,-500.0,0.00016499,2]
[407727149,1772701844165,-500.0,0.00016499,2]
[407727150,1772701844174,-500.0,0.00016499,2]
[407727151,1772701844183,-500.0,0.00016499,2]
[407727152,1772701844193,-500.0,0.00016499,2]
[407727153,1772701844203,-500.0,0.00016499,2]
[407727154,1772701844211,-500.0,0.00016499,2]
[407727155,1772701844221,-500.0,0.00016499,2]
[407727156,1772701844231,-500.0,0.00016499,2]
[407727157,1772701844240,-500.0,0.00016499,2]
[407727158,1772701844250,-500.0,0.00016499,2]
[407727159,1772701844259,-500.0,0.00016499,2]
[407727160,1772701844269,-500.0,0.00016499,2]
[407727161,1772701844279,-500.0,0.00016499,2]
[407727162,1772701844288,-500.0,0.00016499,2]
[407727163,1772701844297,-500.0,0.00016499,2]
[407727164,1772701844306,-500.0,0.00016499,2]
[407727165,1772701844315,-506.37477343,0.00016499,2]
[407727166,1772701844324,-536.39251583,0.00016499,2]
[407727167,1772701844334,-500.0,0.00016499,2]
[407727168,1772701844343,-500.0,0.00016499,2]
[407727169,1772701844352,-500.0,0.00016499,2]
[407727170,1772701844362,-500.0,0.00016499,2]
[407727171,1772701844372,-500.0,0.00016499,2]
[407727172,1772701844381,-500.0,0.00016499,2]
[407727173,1772701844392,-500.0,0.00016499,2]
[407727174,1772701844404,-500.0,0.00016499,2]
[407727175,1772701844414,-500.0,0.00016499,2]
[407727176,1772701844423,-500.0,0.00016499,2]
[407727177,1772701844434,-500.0,0.00016499,2]
[407727178,1772701844443,-500.0,0.00016499,2]
[407727179,1772701844452,-500.0,0.00016499,2]
[407727180,1772701844462,-500.0,0.00016499,2]
[407727181,1772701844471,-500.0,0.00016499,2]
[407727182,1772701844481,-500.0,0.00016499,2]
[407727183,1772701844490,-500.0,0.00016499,2]
[407727184,1772701844503,-500.0,0.00016499,2]
[407727185,1772701844512,-500.0,0.00016499,2]
[407727186,1772701844522,-500.0,0.00016499,2]
[407727187,1772701844532,-582.28,0.00016499,2]
[407727188,1772701844545,-582.28,0.00016499,2]
[407727189,1772701844554,-582.28,0.00016499,2]
[407727190,1772701844563,-582.28,0.00016499,2]
[407727191,1772701844572,-582.28,0.00016499,2]
[407727192,1772701844582,-582.28,0.00016499,2]
[407727193,1772701844591,-582.28,0.00016499,2]
[407727194,1772701844600,-582.28,0.00016499,2]
[407727195,1772701844609,-582.28,0.00016499,2]
[407727196,1772701844618,-582.28,0.00016499,2]
[407727197,1772701844627,-500.0,0.00016499,2]
[407727198,1772701844636,-500.0,0.00016499,2]
[407727199,1772701844646,-500.0,0.00016499,2]
[407727200,1772701844655,-500.0,0.00016499,2]
[407727201,1772701844664,-500.0,0.00016499,2]
[407727202,1772701844674,-500.0,0.00016499,2]
[407727203,1772701844683,-500.0,0.00016499,2]
[407727204,1772701844693,-500.0,0.00016499,2]
[407727205,1772701844703,-500.0,0.00016499,2]
[407727206,1772701844712,-500.0,0.00016499,2]
[407727207,1772701844721,-500.0,0.00016499,2]
[407727208,1772701844730,-500.0,0.00016499,2]
[407727209,1772701844740,-500.0,0.00016499,2]
[407727210,1772701844749,-500.0,0.00016499,2]
[407727211,1772701844759,-500.0,0.00016499,2]
[407727212,1772701844768,-500.0,0.00016499,2]
[407727213,1772701844777,-500.0,0.00016499,2]
[407727214,1772701844786,-518.06665456,0.00016499,2]
[407727215,1772701844795,-1203.99,0.00016499,2]
[407727216,1772701844804,-1203.99,0.00016499,2]
[407727217,1772701844813,-1203.99,0.00016499,2]
[407727218,1772701844822,-1203.99,0.00016499,2]
[407727219,1772701844831,-1203.99,0.00016499,2]
[407727220,1772701844840,-1203.99,0.00016499,2]
[407727221,1772701844849,-1203.99,0.00016499,2]
[407727222,1772701844859,-1203.99,0.00016499,2]
[407727223,1772701844869,-1203.99,0.00016499,2]
[407727224,1772701844878,-1203.99,0.00016499,2]
[407727225,1772701844887,-500.0,0.00016499,2]
[407727226,1772701844897,-500.0,0.00016499,2]
[407727227,1772701844906,-500.0,0.00016499,2]
[407727228,1772701844916,-500.0,0.00016499,2]
[407727229,1772701844925,-500.0,0.00016499,2]
[407727230,1772701844938,-500.0,0.00016499,2]
[407727231,1772701844951,-500.0,0.00016499,2]
[407727232,1772701844961,-500.0,0.00016499,2]
[407727233,1772701844970,-500.0,0.00016499,2]
[407727234,1772701844979,-500.0,0.00016499,2]
[407727235,1772701844988,-500.0,0.00016564,2]
[407727236,1772701844997,-370.69943514,0.00016599,2]
[407727237,1772701845007,-500.0,0.00016599,2]
[407727238,1772701845017,-512.19785893,0.00016599,2]
[407727239,1772701845026,-500.0,0.00016599,2]
[407727240,1772701845036,-500.0,0.00016599,2]
[407727241,1772701845045,-1203.99,0.00016599,2]
[407727242,1772701845054,-500.0,0.00016599,2]
[407727243,1772701845064,-4418.90119629,0.0001661,2]
[407727244,1772701845074,-2546.35,0.00016675,2]
[407727245,1772701845083,-582.28,0.00016698,2]
[407727246,1772701845092,-500.0,0.00016698,2]
[407727247,1772701845101,-166.66,0.00016703,2]
[407727248,1772701845110,-167.27,0.00016712,2]
[407727249,1772701845119,-2179.26,0.00016716,2]
[407727250,1772701845129,-162.794528,0.00016724,2]
[407727251,1772701845138,-268.06,0.0001679,2]
[407727252,1772701845147,-1338.81,0.000168,2]
[407727253,1772701845156,-151.21,0.000168,2]
[407727254,1772701845165,-609.73051546,0.000168,2]
[407727255,1772701845174,-500.0,0.00016838,2]
[407727256,1772701845183,-200.0,0.00016838,2]
[407727257,1772701845192,-150.0,0.00016853,2]
[407727258,1772701845201,-5621.09943271,0.00016874,2]
[407727259,1772701845210,-179.70446505,0.00016895,7]
[407727260,1772701845220,-2500.0,0.00016896,2]
[407727261,1772701845229,-300.0,0.00016896,2]
[407727262,1772701845239,-5000.0,0.00016896,2]
[407727263,1772701845248,-300.0,0.00016896,2]
[407727264,1772701845258,-3993.93326522,0.00016896,2]
[407727265,1772701845267,-250.0,0.00016896,2]
[407727266,1772701845277,-250.0,0.00016896,2]
[407727267,1772701845287,-2500.0,0.00016896,2]
[407727268,1772701845297,-2500.0,0.00016896,2]
[407727269,1772701845306,-2500.0,0.00016896,2]
[407727270,1772701845315,-300.0,0.00016896,2]
[407727271,1772701845325,-546.05300381,0.000169,2]
[407727272,1772701845334,-2000.0,0.000169,2]
[407727273,1772701845343,-246.54770135,0.00016927,2]
[407727274,1772701845353,-500.0,0.00016972,2]
[407727275,1772701845362,-500.0,0.00016972,2]
[407727276,1772701845371,-500.51212371,0.00016973,2]
[407727277,1772701845380,-502.37498593,0.00016973,2]
[407727278,1772701845389,-500.96095128,0.00016973,2]
[407727279,1772701845399,-184.25917093,0.00016973,2]
[407727280,1772701845408,-500.84330545,0.00016973,2]
[407727281,1772701845417,-500.47518083,0.00016973,2]
[407727282,1772701845426,-500.70639793,0.00016973,2]
[407727283,1772701845434,-507.13431696,0.00016973,2]
[407727284,1772701845444,-500.61713446,0.00016973,2]
[407727285,1772701845454,-501.07937522,0.00016973,2]
[407727286,1772701845463,-500.0,0.00016973,2]
[407727287,1772701845472,-277.91000131,0.00016973,2]
[407727288,1772701845482,-500.0,0.00016973,2]
[407727289,1772701845492,-500.66004421,0.00016973,2]
[407727290,1772701845502,-164.26698433,0.00016973,2]
[407727291,1772701845514,-500.6048629,0.00016973,2]
[407727292,1772701845524,-500.8406382,0.00016973,2]
[407727293,1772701845533,-500.63657563,0.00016973,2]
[407727294,1772701845544,-501.0364462,0.00016973,2]
[407727295,1772701845554,-500.67382019,0.00016973,2]
[407727296,1772701845563,-500.72168875,0.00016973,2]
[407727297,1772701845575,-317.56153456,0.00016973,2]
[407727298,1772701845587,-502.06109406,0.00016973,2]
[407727299,1772701845597,-500.0,0.00016973,2]
[407727300,1772701845609,-501.82148523,0.00016973,2]
[407727301,1772701845620,-500.8900569,0.00016973,2]
[407727302,1772701845632,-501.29533568,0.00016973,2]
[407727303,1772701845643,-500.68694088,0.00016973,2]
[407727304,1772701845654,-158.67517064,0.00016973,2]
[407727305,1772701845666,-501.03496978,0.00016973,2]
[407727306,1772701845678,-516.64695093,0.00016973,2]
[407727307,1772701845691,-160.23398328,0.00016973,2]
[407727308,1772701845702,-161.77269484,0.00016973,2]
[407727309,1772701845713,-500.45511478,0.00016973,2]
[407727310,1772701845725,-501.37970938,0.00016973,2]
[407727311,1772701845737,-500.6040409,0.00016973,2]
[407727312,1772701845749,-500.6635566,0.00016973,2]
[407727313,1772701845762,-163.59748029,0.00016973,2]
[407727314,1772701845773,-516.15323722,0.00016973,2]
[407727315,1772701845785,-162.22889393,0.00016973,2]
[407727316,1772701845796,-500.30777449,0.00016973,2]
[407727317,1772701845802,-500.65533715,0.00016973,2]
[407727318,1772701845809,-500.0,0.00016973,2]
[407727319,1772701845816,-500.0,0.00016973,2]
[407727320,1772701845823,-501.34937779,0.00016973,2]
[407727321,1772701845829,-500.0,0.00016973,2]
[407727322,1772701845836,-600.66664765,0.00016973,2]
[407727323,1772701845843,-501.18552408,0.00016973,2]
[407727324,1772701845849,-161.97671235,0.00016973,2]
[407727325,1772701845856,-500.82219971,0.00016973,2]
[407727326,1772701845862,-209.89151104,0.00016973,2]
[407727327,1772701845870,-500.17118036,0.00016973,2]
[407727328,1772701845880,-500.40971882,0.00016973,2]
[407727329,1772701845889,-161.28550548,0.00016973,2]
[407727330,1772701845900,-500.93297401,0.00016973,2]
[407727331,1772701845909,-500.83142573,0.00016973,2]
[407727332,1772701845918,-167.87481142,0.00016973,2]
[407727333,1772701845931,-286.53567068,0.00016973,2]
[407727334,1772701845940,-513.19025276,0.00016973,2]
[407727335,1772701845949,-501.08912633,0.00016973,2]
[407727336,1772701845959,-165.98720503,0.00016973,2]
[407727337,1772701845969,-571.35562547,0.00016973,2]
[407727338,1772701845978,-163.05497047,0.00016973,2]
[407727339,1772701845988,-500.84612641,0.00016973,2]
[407727340,1772701845998,-168.83055657,0.00016973,2]
[407727341,1772701846008,-500.66159153,0.00016973,2]
[407727342,1772701846017,-500.82420992,0.00016973,2]
[407727343,1772701846027,-151.0,0.00016997,2]
[407727344,1772701846037,-300.0,0.00017,2]
[407727345,1772701846047,-513593.34260001,0.00017,2]
[407727346,1772701846056,-5000.0,0.00017,2]
[407727347,1772701846065,-5000.0,0.00017,2]
[407727348,1772701846075,-5000.0,0.00017,2]
[407727349,1772701846085,-5000.0,0.00017,2]
[407727350,1772701846094,-5000.0,0.00017,2]
[407727352,1772701846103,-5000.0,0.00017,2]
[407727353,1772701846112,-3354.083084,0.00017,2]
[407727354,1772701846122,-4418.90119629,0.00017021,2]
[407727355,1772701846131,-268.06,0.0001706,2]
[407727356,1772701846140,-500.0,0.00017112,2]
[407727357,1772701846150,-2179.26,0.00017194,2]
[407727358,1772701846159,-166.66,0.0001722,2]
[407727359,1772701846168,-5621.09943271,0.00017307,2]
[407727360,1772701846178,-935.0,0.00017317,2]
[407727361,1772701846188,-268.06,0.0001733,2]
[407727362,1772701846197,-1680.0,0.00017348,2]
[407727363,1772701846207,-200.0,0.00017386,2]
[407727364,1772701846217,-420.0,0.00017403,2]
[407727365,1772701846226,-420.0,0.00017403,2]
[407727366,1772701846236,-237.0,0.00017403,2]
[407727367,1772701846246,-4418.90119629,0.00017433,2]
[407727368,1772701846256,-3804.14329161,0.000175,2]
[407727369,1772701846266,-189.1597078,0.000175,2]
[407727370,1772701846276,-546.0530038,0.000175,2]
[407727371,1772701846286,-588.52581297,0.00017501,2]
[407727372,1772701846296,-1000.86570592,0.00017521,2]
[407727373,1772701846306,-1000.0,0.00017521,2]
[407727374,1772701846316,-500.88173687,0.00017521,2]
[407727375,1772701846326,-1000.0,0.00017521,2]
[407727376,1772701846336,-500.92260886,0.00017521,2]
[407727377,1772701846346,-268.06,0.000176,2]
[407727378,1772701846355,-2179.26,0.00017672,2]
[407727379,1772701846365,-786.02148944,0.000177,2]
[407727380,1772701846376,-166.66,0.00017737,2]
[407727381,1772701846386,-5621.09943271,0.00017739,2]
[407727382,1772701846396,-4418.90119629,0.00017844,2]
[407727383,1772701846406,-268.06,0.0001787,2]
[407727384,1772701846416,-175.65490252,0.00017898,2]
[407727385,1772701846425,-500.0,0.00017902,2]
[407727386,1772701846437,-200.0,0.00017934,2]
[407727387,1772701846447,-300.0,0.00017999,2]
[407727388,1772701846457,-300.0,0.00017999,2]
[407727389,1772701846468,-104404.12835755,0.00018,2]
[407727390,1772701846477,-308.58119716,0.00018,2]
[407727391,1772701846487,-1002.27869915,0.00018,2]
[407727392,1772701846497,-391.453035,0.0001805,2]
[407727393,1772701846511,-1000.76977486,0.00018068,2]
[407727394,1772701846521,-1003.13118984,0.00018068,2]
[407727396,1772701846530,-1786.2328339,0.000181,2]
[407727398,1772701846540,-546.0530038,0.000181,2]
[407727399,1772701846552,-268.06,0.0001814,2]
[407727401,1772701846561,-188.110575,0.00018145,2]
[407727404,1772701846571,-155.0,0.00018148,2]
[407727405,1772701846581,-2179.26,0.00018149,2]
[407727407,1772701846591,-5621.09943271,0.00018171,2]
[407727410,1772701846600,-3104.2347021,0.0001821,2]
[407727412,1772701846610,-166.66,0.00018255,2]
[407727414,1772701846620,-4418.90119629,0.00018255,2]
[407727415,1772701846629,-277.676717,0.00018333,2]
[407727417,1772701846640,-150.0,0.00018333,2]
[407727420,1772701846650,-150.0,0.00018335,2]
[407727421,1772701846659,-1500.0,0.00018357,2]
[407727424,1772701846669,-505.0,0.000184,5]
[407727426,1772701846678,-268.06,0.0001841,2]
[407727427,1772701846688,-542.58,0.00018441,2]
[407727429,1772701846697,-200.0,0.00018482,2]
[407727431,1772701846711,-5621.09943271,0.00018603,2]
[407727434,1772701846721,-4418.90119629,0.00018666,2]
[407727435,1772701846731,-268.06,0.0001868,2]
[407727438,1772701846741,-546.0530038,0.000187,2]
[407727439,1772701846751,-300.0,0.00018799,2]
[407727441,1772701846762,-151.0,0.000188,2]
[407727443,1772701846771,-250.0,0.000188,2]
[407727446,1772701846780,-209.40437684,0.000188,2]
[407727448,1772701846790,-250.0,0.000188,2]
[407727450,1772701846800,-250.0,0.000188,2]
[407727452,1772701846809,-1428.38747117,0.000188,2]
[407727454,1772701846818,-721.12765535,0.000188,2]
[407727456,1772701846827,-250.0,0.000188,2]
[407727458,1772701846837,-250.0,0.000188,2]
[407727460,1772701846846,-250.0,0.000188,2]
[407727462,1772701846855,-250.0,0.000188,2]
[407727464,1772701846864,-250.0,0.000188,2]
[407727466,1772701846873,-250.0,0.000188,2]
[407727468,1772701846883,-250.0,0.000188,2]
[407727470,1772701846892,-250.0,0.000188,2]
[407727472,1772701846901,-500.0,0.000188,2]
[407727474,1772701846910,-250.0,0.000188,2]
[407727476,1772701846921,-250.0,0.000188,2]
[407727478,1772701846930,-500.0,0.000188,2]
[407727480,1772701846940,-250.0,0.000188,2]
[407727482,1772701846949,-250.0,0.000188,2]
[407727484,1772701846958,-250.0,0.000188,2]
[407727486,1772701846967,-250.0,0.000188,2]
[407727488,1772701846976,-500.0,0.000188,2]
[407727490,1772701846985,-250.0,0.000188,2]
[407727491,1772701846994,-500.0,0.000188,2]
[407727492,1772701847003,-500.0,0.000188,2]
[407727493,1772701847012,-250.0,0.000188,2]
[407727494,1772701847021,-500.0,0.000188,2]
[407727496,1772701847030,-250.0,0.000188,2]
[407727498,1772701847040,-500.0,0.000188,2]
[407727500,1772701847049,-500.0,0.000188,2]
[407727502,1772701847059,-500.0,0.000188,2]
[407727504,1772701847068,-270.94567741,0.000188,2]
[407727505,1772701847077,-500.0,0.000188,2]
[407727506,1772701847086,-500.0,0.000188,2]
[407727507,1772701847095,-300.0,0.000188,2]
[407727508,1772701847104,-300.0,0.000188,2]
[407727509,1772701847114,-300.0,0.000188,2]
[407727510,1772701847122,-300.0,0.000188,2]
[407727511,1772701847131,-174.61919141,0.000188,2]
[407727512,1772701847140,-300.0,0.000188,2]
[407727513,1772701847149,-300.0,0.000188,2]
[407727514,1772701847159,-300.0,0.000188,2]
[407727515,1772701847168,-151.0,0.000188,2]
[407727516,1772701847177,-300.0,0.000188,2]
[407727517,1772701847187,-305.95163096,0.000188,2]
[407727518,1772701847196,-262.90206542,0.000188,2]
[407727519,1772701847206,-578.20924308,0.000188,2]
[407727520,1772701847215,-151.0,0.000188,2]
[407727521,1772701847227,-151.0,0.000188,2]
[407727522,1772701847236,-250.0,0.000188,2]
[407727523,1772701847245,-151.0,0.000188,2]
[407727524,1772701847254,-250.0,0.000188,2]
[407727525,1772701847264,-151.0,0.000188,2]
[407727526,1772701847273,-250.0,0.000188,2]
[407727527,1772701847282,-151.0,0.000188,2]
[407727528,1772701847291,-250.0,0.000188,2]
[407727529,1772701847301,-151.0,0.000188,2]
[407727530,1772701847309,-250.0,0.000188,2]
[407727531,1772701847318,-250.0,0.000188,2]
[407727532,1772701847328,-151.0,0.000188,2]
[407727533,1772701847337,-250.0,0.000188,2]
[407727534,1772701847346,-250.0,0.000188,2]
[407727535,1772701847356,-151.0,0.000188,2]
[407727536,1772701847365,-693.3919763,0.000188,2]
[407727537,1772701847374,-250.0,0.000188,2]
[407727538,1772701847383,-250.0,0.000188,2]
[407727539,1772701847392,-151.0,0.000188,2]
[407727540,1772701847401,-250.0,0.000188,2]
[407727541,1772701847410,-250.0,0.000188,2]
[407727542,1772701847419,-151.0,0.000188,2]
[407727543,1772701847427,-250.0,0.000188,2]
[407727544,1772701847436,-151.0,0.000188,2]
[407727545,1772701847446,-500.0,0.000188,2]
[407727546,1772701847455,-500.0,0.000188,2]
[407727547,1772701847464,-500.0,0.000188,2]
[407727548,1772701847473,-500.0,0.000188,2]
[407727549,1772701847482,-500.0,0.000188,2]
[407727550,1772701847491,-500.0,0.000188,2]
[407727551,1772701847501,-500.0,0.000188,2]
[407727552,1772701847513,-500.0,0.000188,2]
[407727553,1772701847522,-500.0,0.000188,2]
[407727554,1772701847531,-500.0,0.000188,2]
[407727555,1772701847540,-500.0,0.000188,2]
[407727556,1772701847550,-500.0,0.000188,2]
[407727557,1772701847559,-500.0,0.000188,2]
[407727558,1772701847568,-500.0,0.000188,2]
[407727559,1772701847580,-209.40437684,0.000188,2]
[407727560,1772701847590,-500.0,0.000188,2]
[407727561,1772701847601,-209.40437684,0.000188,2]
[407727562,1772701847610,-500.0,0.000188,2]
[407727563,1772701847619,-500.0,0.000188,2]
[407727564,1772701847628,-500.0,0.000188,2]
[407727565,1772701847638,-500.0,0.000188,2]
[407727566,1772701847647,-500.0,0.000188,2]
[407727567,1772701847873,-743.50770149,0.000188,2]
[407727568,1772701847894,-693.3919763,0.000188,2]
[407727569,1772701847903,-269.917619,0.000188,2]
[407727570,1772701847912,-233.454654,0.00018809,7]
[407727571,1772701847921,-780.61,0.00018814,2]
[407727572,1772701847930,-151.0,0.00018855,2]
[407727573,1772701847939,-719.04747942,0.00018855,2]
[407727574,1772701847950,-965.05,0.00018867,2]
[407727575,1772701847959,-151.0,0.0001891,2]
[407727576,1772701847969,-745.65223616,0.0001891,2]
[407727577,1772701847978,-268.06,0.0001895,2]
[407727578,1772701847987,-151.0,0.00018965,2]
[407727579,1772701847996,-773.2413689,0.00018965,2]
[407727580,1772701848006,-712.12867022,0.00019,2]
[407727581,1772701848015,-929.96967051,0.00019,2]
[407727582,1772701848024,-151.0,0.0001902,2]
[407727583,1772701848033,-801.85129955,0.0001902,2]
[407727584,1772701848043,-587.0,0.00019029,2]
[407727585,1772701848054,-587.0,0.00019029,2]
[407727586,1772701848063,-200.0,0.0001903,2]
[407727587,1772701848072,-5621.09943271,0.00019036,2]
[407727588,1772701848082,-2351.0,0.00019067,2]
[407727589,1772701848091,-151.0,0.00019075,2]
[407727590,1772701848102,-831.51979763,0.00019075,2]
[407727591,1772701848111,-4418.90119629,0.00019078,2]
[407727592,1772701848120,-780.61,0.00019088,2]
[407727593,1772701848130,-151.0,0.0001913,2]
[407727594,1772701848149,-862.28603014,0.0001913,2]
[407727595,1772701848160,-1000.0,0.00019178,2]
[407727596,1772701848170,-151.0,0.00019185,2]
[407727597,1772701848180,-894.19061326,0.00019185,2]
[407727598,1772701848190,-268.06,0.0001922,2]
[407727599,1772701848201,-151.0,0.0001924,2]
[407727600,1772701848211,-927.27566595,0.0001924,2]
[407727601,1772701848221,-151.0,0.00019295,2]
[407727602,1772701848231,-961.58486559,0.00019295,2]
[407727603,1772701848241,-546.0530038,0.000193,2]
[407727604,1772701848251,-217.15233878,0.00019348,2]
[407727605,1772701848261,-1481.23780761,0.00019348,2]
[407727606,1772701848271,-181.08010149,0.00019348,2]
[407727607,1772701848281,-272.62944185,0.00019348,2]
[407727608,1772701848291,-217.15233878,0.00019348,2]
[407727609,1772701848301,-217.15233878,0.00019348,2]
[407727610,1772701848311,-771.01748645,0.00019348,2]
[407727611,1772701848321,-188.04392138,0.00019348,2]
[407727612,1772701848332,-232.082381,0.00019348,2]
[407727613,1772701848342,-997.16350561,0.0001935,2]
[407727614,1772701848352,-847.94,0.00019362,2]
[407727615,1772701848362,-5621.09943271,0.00019468,2]
[407727616,1772701848371,-4418.90119629,0.00019489,2]
[407727617,1772701848381,-268.06,0.0001949,2]
[407727618,1772701848391,-200.0,0.00019578,2]
[407727619,1772701848402,-500.5643,0.00019685,120]
[407727620,1772701848412,-268.06,0.0001976,2]
[407727621,1772701848422,-155.0,0.00019798,2]
[407727622,1772701848432,-205.79172238,0.00019896,2]
[407727623,1772701848441,-187.78006525,0.00019896,2]
[407727624,1772701848451,-282.71673119,0.00019896,2]
[407727625,1772701848461,-225.18697532,0.00019896,2]
[407727626,1772701848471,-225.18697532,0.00019896,2]
[407727627,1772701848481,-799.54513345,0.00019896,2]
[407727628,1772701848495,-4945.54266186,0.000199,3]
[407727629,1772701848508,-391.453035,0.000199,2]
[407727630,1772701848519,-4418.90119629,0.000199,2]
[407727631,1772701848529,-13771.6747553,0.000199,2]
[407727632,1772701848540,-310.77887769,0.000199,2]
[407727633,1772701848552,-5621.09943271,0.000199,2]
[407727634,1772701848562,-546.0530038,0.000199,2]
[407727635,1772701848573,-734.82152642,0.0001995,15]
[407727636,1772701848584,-358.49562354,0.0001999,2]
[407727637,1772701848594,-358.49562354,0.0001999,2]
[407727638,1772701848604,-151.0,0.00019997,2]
[407727639,1772701848616,-300.0,0.00019999,2]
[407727640,1772701848627,-500.0,0.00019999,2]
[407727641,1772701848637,-500.0,0.00019999,2]
[407727642,1772701848647,-500.0,0.00019999,2]
[407727643,1772701848658,-349.92362241,0.00019999,2]
[407727644,1772701848668,-418361.05595668,0.0002,2]
[407727645,1772701848678,-209.23668347,0.0002,120]
[407727646,1772701848688,-1539.41723611,0.0002,2]
[407727647,1772701848698,-177.21271785,0.0002,2]
[407727648,1772701848708,-663.68026894,0.0002,30]
[407727649,1772701848718,-2039633.8669521,0.0002,2]
[407727650,1772701849463,-460.62560819,0.0002,2]
[407727651,1772701849486,-47028.93999999,0.0002,2]
[407727652,1772701850728,-97.32646182,0.00016099,2]
[407727653,1772701851196,-708.65422488,0.00016099,2]
[407727654,1772701851668,-424.46764445,0.00016099,2]
[407727655,1772701851677,-41793.86921135,0.0002,2]
[407727656,1772701851699,-2126.27267384,0.0002,2]
[407727657,1772701851710,-1632.91740928,0.0002,2]
[407727658,1772701851721,-269.58113821,0.0002,2]
[407727659,1772701851763,-6720.0,0.0002,2]
[407727660,1772701851824,-339.07198943,0.0002,2]
[407727661,1772701860463,206.55381253,0.00015785,2]
[407727662,1772701861405,300.0,0.00016194,2]
[407727663,1772701864151,704.71131693,0.00016099,2]
[407727664,1772701864186,704.71131693,0.00016099,2]
[407727665,1772701864225,704.71131693,0.00016099,2]
[407727666,1772701864258,704.71131693,0.00016099,2]
[407727667,1772701864301,704.71131693,0.00016099,2]
[407727668,1772701864337,704.71131693,0.00016099,2]
[407727669,1772701864370,704.71131693,0.00016099,2]
[407727670,1772701864558,704.71131693,0.00016099,2]
[407727671,1772701864595,704.71131693,0.00016099,2]
[407727672,1772701864626,704.71131693,0.00016099,2]
[407727673,1772701864655,704.71131693,0.00016099,2]
[407727674,1772701864692,704.71131693,0.00016099,2]
[407727675,1772701864730,704.71131693,0.00016099,2]
[407727676,1772701864770,332.20906738,0.00016099,2]
[407727677,1772701864793,372.50224955,0.00016099,2]
[407727678,1772701864826,704.71131693,0.00016099,2]
[407727679,1772701864861,704.71131693,0.00016099,2]
[407727680,1772701865015,704.71131693,0.00016099,2]
[407727681,1772701865123,704.71131693,0.00016099,2]
[407727682,1772701865152,704.71131693,0.00016099,2]
[407727683,1772701865195,704.71131693,0.00016099,2]
[407727684,1772701865252,704.71131693,0.00016099,2]
[407727685,1772701865304,704.71131693,0.00016099,2]
[407727686,1772701865334,704.71131693,0.00016099,2]
[407727687,1772701865363,704.71131693,0.00016099,2]
[407727688,1772701865394,704.71131693,0.00016099,2]
[407727689,1772701865430,704.71131693,0.00016099,2]
[407727690,1772701865460,704.71131693,0.00016099,2]